[Event "Titled Tuesday Blitz May 31 Late 2022"]
[White "Mickiewicz, Piotr"]
[Black "Ticondriul"]
[WhiteFideId "1114891"]
[WhiteElo "2223"]
[BlackElo "2641"]
[Result "1-0"]
[Round "02"]
[TimeControl "180+1"]
[Date "2022.06.01"]
[WhiteClock "0:00:08"]
[BlackClock "0:00:57"]

1. e4 {[%clk 0:03:00]}  Nc6 {[%clk 0:03:00]} 2. Nf3 {[%clk 0:02:59]}  d5 {[%clk 0:03:00]} 3. exd5 {[%clk 0:02:59]}  Qxd5 {[%clk 0:03:00]} 4. Nc3 {[%clk 0:02:59]}  Qh5 {[%clk 0:03:00]} 5. Nb5 {[%clk 0:02:57]}  Kd8 {[%clk 0:03:00]} 6. d4 {[%clk 0:02:53]}  a6 {[%clk 0:02:59]} 7. d5 {[%clk 0:02:50]}  Ne5 {[%clk 0:02:58]} 8. Nbd4 {[%clk 0:02:45]}  Nf6 {[%clk 0:02:56]} 9. Be2 {[%clk 0:02:37]}  Bg4 {[%clk 0:02:56]} 10. c4 {[%clk 0:02:24]}  Nxf3+ {[%clk 0:02:48]} 11. Nxf3 {[%clk 0:02:22]}  Bxf3 {[%clk 0:02:48]} 12. Bxf3 {[%clk 0:02:21]}  Qe5+ {[%clk 0:02:49]} 13. Be3 {[%clk 0:02:08]}  h5 {[%clk 0:02:46]} 14. h3 {[%clk 0:02:01]}  g5 {[%clk 0:02:23]} 15. Qb3 {[%clk 0:01:57]}  Kc8 {[%clk 0:02:15]} 16. O-O-O {[%clk 0:01:56]}  Bg7 {[%clk 0:02:11]} 17. d6 {[%clk 0:01:42]}  c6 {[%clk 0:02:09]} 18. dxe7 {[%clk 0:01:31]}  Qxe7 {[%clk 0:02:08]} 19. Rhe1 {[%clk 0:01:26]}  Qc7 {[%clk 0:02:05]} 20. Qd3 {[%clk 0:01:10]}  g4 {[%clk 0:01:51]} 21. Qf5+ {[%clk 0:01:08]}  Kb8 {[%clk 0:01:50]} 22. Bf4 {[%clk 0:01:07]}  Bh6 {[%clk 0:01:51]} 23. Bxh6 {[%clk 0:00:56]}  Rxh6 {[%clk 0:01:49]} 24. hxg4 {[%clk 0:00:49]}  hxg4 {[%clk 0:01:47]} 25. Bxg4 {[%clk 0:00:47]}  Rg6 {[%clk 0:01:44]} 26. Bf3 {[%clk 0:00:46]}  Ka7 {[%clk 0:01:42]} 27. Qc5+ {[%clk 0:00:35]}  Qb6 {[%clk 0:01:41]} 28. Qxb6+ {[%clk 0:00:35]}  Kxb6 {[%clk 0:01:42]} 29. Re7 {[%clk 0:00:35]}  Rf8 {[%clk 0:01:34]} 30. c5+ {[%clk 0:00:34]}  Kxc5 {[%clk 0:01:32]} 31. Rxb7 {[%clk 0:00:35]}  a5 {[%clk 0:01:31]} 32. Rc7 {[%clk 0:00:34]}  Ng4 {[%clk 0:01:23]} 33. Rd2 {[%clk 0:00:31]}  Ne5 {[%clk 0:01:20]} 34. Be4 {[%clk 0:00:17]}  Kb6 {[%clk 0:01:11]} 35. Re7 {[%clk 0:00:17]}  Re6 {[%clk 0:01:11]} 36. Rxe6 {[%clk 0:00:16]}  fxe6 {[%clk 0:01:12]} 37. f3 {[%clk 0:00:16]}  Nc4 {[%clk 0:01:12]} 38. Rd7 {[%clk 0:00:14]}  Kc5 {[%clk 0:01:11]} 39. g4 {[%clk 0:00:14]}  Ne5 {[%clk 0:01:11]} 40. Re7 {[%clk 0:00:14]}  Kd6 {[%clk 0:01:11]} 41. Ra7 {[%clk 0:00:14]}  Nc4 {[%clk 0:01:10]} 42. Ra6 {[%clk 0:00:12]}  Ne5 {[%clk 0:01:10]} 43. Kd2 {[%clk 0:00:11]}  Kc5 {[%clk 0:01:09]} 44. Kc3 {[%clk 0:00:11]}  Kb5 {[%clk 0:01:09]} 45. Ra7 {[%clk 0:00:11]}  Kb6 {[%clk 0:01:09]} 46. Re7 {[%clk 0:00:11]}  Kc5 {[%clk 0:01:09]} 47. Rxe6 {[%clk 0:00:10]}  Nxf3 {[%clk 0:01:08]} 48. Bf5 {[%clk 0:00:08]}  Nh4 {[%clk 0:01:05]} 49. Re5+ {[%clk 0:00:07]}  Kd6 {[%clk 0:01:06]} 50. Rxa5 {[%clk 0:00:05]}  Rb8 {[%clk 0:01:06]} 51. b3 {[%clk 0:00:04]}  Re8 {[%clk 0:01:07]} 52. Kd3 {[%clk 0:00:04]}  Re1 {[%clk 0:01:07]} 53. Ra6 {[%clk 0:00:04]}  Rg1 {[%clk 0:01:07]} 54. Ke3 {[%clk 0:00:04]}  Rg3+ {[%clk 0:01:08]} 55. Kf4 {[%clk 0:00:03]}  Rf3+ {[%clk 0:01:09]} 56. Kg5 {[%clk 0:00:03]}  Ng2 {[%clk 0:01:10]} 57. Kg6 {[%clk 0:00:03]}  Nf4+ {[%clk 0:01:10]} 58. Kf6 {[%clk 0:00:04]}  Nd5+ {[%clk 0:01:10]} 59. Kg5 {[%clk 0:00:04]}  Rf4 {[%clk 0:01:11]} 60. a3 {[%clk 0:00:03]}  Rd4 {[%clk 0:01:12]} 61. b4 {[%clk 0:00:03]}  Nc7 {[%clk 0:01:07]} 62. Ra7 {[%clk 0:00:03]}  Nb5 {[%clk 0:01:07]} 63. Ra8 {[%clk 0:00:04]}  Kc7 {[%clk 0:01:06]} 64. Rc8+ {[%clk 0:00:03]}  Kb6 {[%clk 0:01:06]} 65. Rf8 {[%clk 0:00:04]}  Nd6 {[%clk 0:01:06]} 66. Rb8+ {[%clk 0:00:04]}  Kc7 {[%clk 0:01:06]} 67. Rf8 {[%clk 0:00:05]}  Rd5 {[%clk 0:01:06]} 68. Rf6 {[%clk 0:00:05]}  Ne4+ {[%clk 0:01:06]} 69. Kg6 {[%clk 0:00:06]}  Nxf6 {[%clk 0:01:06]} 70. Kxf6 {[%clk 0:00:06]}  Rd6+ {[%clk 0:01:06]} 71. Ke7 {[%clk 0:00:06]}  Rd5 {[%clk 0:01:06]} 72. Ke6 {[%clk 0:00:06]}  Rd1 {[%clk 0:01:04]} 73. g5 {[%clk 0:00:06]}  Re1+ {[%clk 0:01:05]} 74. Kf6 {[%clk 0:00:06]}  Kd6 {[%clk 0:01:05]} 75. g6 {[%clk 0:00:06]}  Rg1 {[%clk 0:00:57]} 76. g7 {[%clk 0:00:07]}  Kc7 {[%clk 0:00:57]} 77. Kf7 {[%clk 0:00:07]}  Rf1 {[%clk 0:00:57]} 78. g8=Q {[%clk 0:00:07]}  Rxf5+ {[%clk 0:00:57]} 79. Ke6 {[%clk 0:00:08]} 1-0


[Site "https://www.chess.com"]

[Event "Titled Tuesday Blitz May 31 Late 2022"]
[White "Milikow, Elie"]
[Black "Sliwicki, Damian"]
[WhiteFideId "371281868"]
[BlackFideId "1127128"]
[WhiteElo "2257"]
[BlackElo "2125"]
[Result "1-0"]
[Round "02"]
[TimeControl "180+1"]
[Date "2022.06.01"]
[WhiteClock "0:00:07"]
[BlackClock "0:00:03"]

1. e4 {[%clk 0:03:00]}  c5 {[%clk 0:02:59]} 2. Nf3 {[%clk 0:02:59]}  g6 {[%clk 0:02:58]} 3. d4 {[%clk 0:02:57]}  cxd4 {[%clk 0:02:58]} 4. Nxd4 {[%clk 0:02:53]}  Nc6 {[%clk 0:02:58]} 5. c4 {[%clk 0:02:53]}  Nf6 {[%clk 0:02:57]} 6. Nc3 {[%clk 0:02:53]}  Nxd4 {[%clk 0:02:58]} 7. Qxd4 {[%clk 0:02:53]}  d6 {[%clk 0:02:58]} 8. f3 {[%clk 0:02:53]}  Bg7 {[%clk 0:02:59]} 9. Be3 {[%clk 0:02:53]}  O-O {[%clk 0:02:59]} 10. Qd2 {[%clk 0:02:53]}  Qa5 {[%clk 0:02:56]} 11. Be2 {[%clk 0:02:53]}  Be6 {[%clk 0:02:55]} 12. O-O {[%clk 0:02:53]}  Rac8 {[%clk 0:02:49]} 13. Nd5 {[%clk 0:02:52]}  Qxd2 {[%clk 0:02:32]} 14. Nxe7+ {[%clk 0:02:51]}  Kh8 {[%clk 0:02:33]} 15. Bxd2 {[%clk 0:02:52]}  Rce8 {[%clk 0:02:33]} 16. Nd5 {[%clk 0:02:48]}  Bxd5 {[%clk 0:02:13]} 17. cxd5 {[%clk 0:02:49]}  Nxd5 {[%clk 0:02:13]} 18. Bb5 {[%clk 0:02:49]}  Re5 {[%clk 0:02:14]} 19. exd5 {[%clk 0:02:23]}  Rxd5 {[%clk 0:02:13]} 20. Bb4 {[%clk 0:02:21]}  Rxb5 {[%clk 0:02:11]} 21. Bxd6 {[%clk 0:02:21]}  Rd8 {[%clk 0:02:08]} 22. Rad1 {[%clk 0:02:06]}  Rxb2 {[%clk 0:01:58]} 23. Ba3 {[%clk 0:02:01]}  Rbd2 {[%clk 0:01:43]} 24. Rxd2 {[%clk 0:02:00]}  Rxd2 {[%clk 0:01:43]} 25. Rc1 {[%clk 0:01:39]}  Bd4+ {[%clk 0:01:42]} 26. Kf1 {[%clk 0:01:32]}  Rxa2 {[%clk 0:01:27]} 27. Rc8+ {[%clk 0:01:30]}  Kg7 {[%clk 0:01:27]} 28. Bf8+ {[%clk 0:01:31]}  Kf6 {[%clk 0:01:28]} 29. Rd8 {[%clk 0:01:30]}  Bb6 {[%clk 0:01:08]} 30. Rd6+ {[%clk 0:01:29]}  Ke5 {[%clk 0:01:07]} 31. Rd7 {[%clk 0:01:30]}  Rf2+ {[%clk 0:00:59]} 32. Ke1 {[%clk 0:01:30]}  Rxg2 {[%clk 0:00:59]} 33. Rxb7 {[%clk 0:01:13]}  f5 {[%clk 0:00:59]} 34. Rxh7 {[%clk 0:01:12]}  Kf4 {[%clk 0:00:59]} 35. Rh3 {[%clk 0:01:10]}  Ke3 {[%clk 0:00:55]} 36. Kd1 {[%clk 0:01:01]}  Kd3 {[%clk 0:00:47]} 37. Kc1 {[%clk 0:00:58]}  Be3+ {[%clk 0:00:44]} 38. Kb1 {[%clk 0:00:58]}  Bd4 {[%clk 0:00:41]} 39. Rh7 {[%clk 0:00:45]}  Rg1+ {[%clk 0:00:39]} 40. Ka2 {[%clk 0:00:45]}  Ra1+ {[%clk 0:00:39]} 41. Kb3 {[%clk 0:00:46]}  a5 {[%clk 0:00:34]} 42. Rd7 {[%clk 0:00:43]}  a4+ {[%clk 0:00:24]} 43. Kb4 {[%clk 0:00:44]}  Rb1+ {[%clk 0:00:04]} 44. Kxa4 {[%clk 0:00:44]}  Kc4 {[%clk 0:00:04]} 45. Rc7+ {[%clk 0:00:31]}  Kd5 {[%clk 0:00:04]} 46. Rd7+ {[%clk 0:00:32]}  Kc4 {[%clk 0:00:05]} 47. Rc7+ {[%clk 0:00:29]}  Kd5 {[%clk 0:00:05]} 48. Ka3 {[%clk 0:00:28]}  Be5 {[%clk 0:00:04]} 49. Rh7 {[%clk 0:00:17]}  Kc4 {[%clk 0:00:05]} 50. Rh4+ {[%clk 0:00:14]}  f4 {[%clk 0:00:05]} 51. Ka4 {[%clk 0:00:06]}  Ra1+ {[%clk 0:00:03]} 52. Ba3 {[%clk 0:00:07]}  Bd6 {[%clk 0:00:03]} 53. Ka5 {[%clk 0:00:07]} 1-0


[Site "https://www.chess.com"]

[Event "Titled Tuesday Blitz May 31 Late 2022"]
[White "Niemann, Hans Moke"]
[Black "Vazquez, Facundo"]
[WhiteFideId "2093596"]
[BlackFideId "3007669"]
[WhiteElo "2632"]
[BlackElo "1984"]
[Result "1-0"]
[Round "02"]
[TimeControl "180+1"]
[Date "2022.05.31"]
[WhiteClock "0:00:11"]
[BlackClock "0:00:15"]

1. e4 {[%clk 0:03:00]}  c5 {[%clk 0:02:56]} 2. Nf3 {[%clk 0:03:00]}  e6 {[%clk 0:02:56]} 3. d4 {[%clk 0:02:59]}  cxd4 {[%clk 0:02:56]} 4. Nxd4 {[%clk 0:03:00]}  Nf6 {[%clk 0:02:56]} 5. Nc3 {[%clk 0:02:58]}  Nc6 {[%clk 0:02:57]} 6. Nxc6 {[%clk 0:02:51]}  bxc6 {[%clk 0:02:56]} 7. e5 {[%clk 0:02:51]}  Nd5 {[%clk 0:02:57]} 8. Ne4 {[%clk 0:02:52]}  Qc7 {[%clk 0:02:58]} 9. f4 {[%clk 0:02:47]}  Qa5+ {[%clk 0:02:58]} 10. Kf2 {[%clk 0:02:31]}  Qb6+ {[%clk 0:02:54]} 11. Kf3 {[%clk 0:02:30]}  f5 {[%clk 0:02:50]} 12. Nf2 {[%clk 0:02:05]}  c5 {[%clk 0:02:44]} 13. Kg3 {[%clk 0:02:01]}  g5 {[%clk 0:02:38]} 14. fxg5 {[%clk 0:01:59]}  h5 {[%clk 0:02:19]} 15. gxh6 {[%clk 0:01:48]}  f4+ {[%clk 0:01:21]} 16. Bxf4 {[%clk 0:01:46]}  Nxf4 {[%clk 0:01:21]} 17. Kxf4 {[%clk 0:01:47]}  Bxh6+ {[%clk 0:01:21]} 18. Kg3 {[%clk 0:01:48]}  Bg7 {[%clk 0:01:18]} 19. Ng4 {[%clk 0:01:41]}  Bb7 {[%clk 0:01:16]} 20. Be2 {[%clk 0:01:36]}  O-O-O {[%clk 0:01:13]} 21. Qd6 {[%clk 0:01:31]}  Qxd6 {[%clk 0:01:13]} 22. exd6 {[%clk 0:01:30]}  Rdg8 {[%clk 0:01:14]} 23. c3 {[%clk 0:01:21]}  Be5+ {[%clk 0:01:09]} 24. Kf2 {[%clk 0:01:22]}  Bxd6 {[%clk 0:01:10]} 25. Rad1 {[%clk 0:01:22]}  Be7 {[%clk 0:01:08]} 26. Bf3 {[%clk 0:01:21]}  Bxf3 {[%clk 0:01:03]} 27. Kxf3 {[%clk 0:01:22]}  Rf8+ {[%clk 0:01:02]} 28. Ke2 {[%clk 0:01:22]}  d6 {[%clk 0:01:02]} 29. g3 {[%clk 0:01:21]}  Rfg8 {[%clk 0:01:01]} 30. Nf2 {[%clk 0:01:18]}  d5 {[%clk 0:01:00]} 31. c4 {[%clk 0:01:17]}  Rg5 {[%clk 0:00:56]} 32. cxd5 {[%clk 0:01:11]}  exd5 {[%clk 0:00:57]} 33. Rd2 {[%clk 0:01:09]}  c4 {[%clk 0:00:56]} 34. h4 {[%clk 0:01:08]}  Re5+ {[%clk 0:00:56]} 35. Kf3 {[%clk 0:01:08]}  Bc5 {[%clk 0:00:55]} 36. Rhd1 {[%clk 0:00:56]}  Re3+ {[%clk 0:00:52]} 37. Kg2 {[%clk 0:00:55]}  Rg8 {[%clk 0:00:51]} 38. g4 {[%clk 0:00:45]}  d4 {[%clk 0:00:48]} 39. Rxd4 {[%clk 0:00:45]}  Bxd4 {[%clk 0:00:48]} 40. Rxd4 {[%clk 0:00:46]}  Re2 {[%clk 0:00:45]} 41. Rxc4+ {[%clk 0:00:46]}  Kd7 {[%clk 0:00:44]} 42. Rf4 {[%clk 0:00:26]}  Rxb2 {[%clk 0:00:43]} 43. Kg3 {[%clk 0:00:24]}  Rxa2 {[%clk 0:00:42]} 44. g5 {[%clk 0:00:24]}  a5 {[%clk 0:00:41]} 45. Ne4 {[%clk 0:00:22]}  Ke6 {[%clk 0:00:38]} 46. Nf6 {[%clk 0:00:20]}  Rb8 {[%clk 0:00:37]} 47. g6 {[%clk 0:00:13]}  Ra3+ {[%clk 0:00:36]} 48. Kg4 {[%clk 0:00:13]}  Rb4 {[%clk 0:00:36]} 49. g7 {[%clk 0:00:11]}  Rxf4+ {[%clk 0:00:15]} 50. Kxf4 {[%clk 0:00:11]} 1-0


[Site "https://www.chess.com"]

[Event "Titled Tuesday Blitz May 31 Late 2022"]
[White "Ozdemir, Serhan Berat"]
[Black "Abarca Gonzalez, Nicolas"]
[WhiteFideId "6374611"]
[BlackFideId "3409422"]
[WhiteElo "1920"]
[BlackElo "2504"]
[Result "0-1"]
[Round "02"]
[TimeControl "180+1"]
[Date "2022.06.01"]
[WhiteClock "0:00:04"]
[BlackClock "0:00:29"]

1. e4 {[%clk 0:03:00]}  c5 {[%clk 0:02:57]} 2. Nf3 {[%clk 0:02:59]}  d6 {[%clk 0:02:57]} 3. d4 {[%clk 0:02:59]}  cxd4 {[%clk 0:02:58]} 4. Nxd4 {[%clk 0:02:59]}  Nf6 {[%clk 0:02:58]} 5. Nc3 {[%clk 0:03:00]}  g6 {[%clk 0:02:58]} 6. Be3 {[%clk 0:02:59]}  Bg7 {[%clk 0:02:59]} 7. f3 {[%clk 0:02:59]}  O-O {[%clk 0:02:59]} 8. Qd2 {[%clk 0:03:00]}  Nc6 {[%clk 0:03:00]} 9. Bc4 {[%clk 0:03:00]}  Ne5 {[%clk 0:03:00]} 10. Bb3 {[%clk 0:03:00]}  Bd7 {[%clk 0:03:00]} 11. h4 {[%clk 0:02:45]}  Qa5 {[%clk 0:02:59]} 12. O-O-O {[%clk 0:02:39]}  Rfc8 {[%clk 0:02:58]} 13. Kb1 {[%clk 0:02:33]}  Nc4 {[%clk 0:02:45]} 14. Bxc4 {[%clk 0:02:32]}  Rxc4 {[%clk 0:02:46]} 15. Nb3 {[%clk 0:02:25]}  Qc7 {[%clk 0:02:46]} 16. Bh6 {[%clk 0:02:21]}  Bxh6 {[%clk 0:02:30]} 17. Qxh6 {[%clk 0:02:14]}  Rxc3 {[%clk 0:02:31]} 18. bxc3 {[%clk 0:02:11]}  Qxc3 {[%clk 0:02:31]} 19. Rd3 {[%clk 0:02:06]}  Qe5 {[%clk 0:02:22]} 20. h5 {[%clk 0:01:39]}  a5 {[%clk 0:02:11]} 21. hxg6 {[%clk 0:01:38]}  fxg6 {[%clk 0:02:12]} 22. Rd5 {[%clk 0:01:19]}  Qe6 {[%clk 0:01:39]} 23. Rg5 {[%clk 0:01:02]}  a4 {[%clk 0:00:56]} 24. Rxg6+ {[%clk 0:00:31]}  hxg6 {[%clk 0:00:56]} 25. Qxg6+ {[%clk 0:00:32]}  Kf8 {[%clk 0:00:56]} 26. Rh8+ {[%clk 0:00:32]}  Ng8 {[%clk 0:00:57]} 27. Qxe6 {[%clk 0:00:09]}  Bxe6 {[%clk 0:00:58]} 28. Nd4 {[%clk 0:00:10]}  Bd7 {[%clk 0:00:54]} 29. g4 {[%clk 0:00:07]}  Kg7 {[%clk 0:00:52]} 30. Rh5 {[%clk 0:00:08]}  Nf6 {[%clk 0:00:50]} 31. Rh2 {[%clk 0:00:07]}  Rh8 {[%clk 0:00:42]} 32. Rxh8 {[%clk 0:00:06]}  Kxh8 {[%clk 0:00:43]} 33. g5 {[%clk 0:00:03]}  Nh5 {[%clk 0:00:43]} 34. c3 {[%clk 0:00:02]}  Kg7 {[%clk 0:00:41]} 35. Kc2 {[%clk 0:00:03]}  Kg6 {[%clk 0:00:41]} 36. Kd3 {[%clk 0:00:02]}  Kxg5 {[%clk 0:00:41]} 37. Ke3 {[%clk 0:00:03]}  Nf4 {[%clk 0:00:37]} 38. a3 {[%clk 0:00:03]}  Ne6 {[%clk 0:00:30]} 39. Ne2 {[%clk 0:00:04]}  Nc7 {[%clk 0:00:29]} 40. f4+ {[%clk 0:00:04]}  Kf6 {[%clk 0:00:29]} 41. Ng3 {[%clk 0:00:04]}  Nb5 {[%clk 0:00:29]} 0-1


[Site "https://www.chess.com"]

[Event "Titled Tuesday Blitz May 31 Late 2022"]
[White "Papp, Levente"]
[Black "Sarana, Alexey"]
[WhiteFideId "751243"]
[BlackFideId "24133795"]
[WhiteElo "2308"]
[BlackElo "2666"]
[Result "0-1"]
[Round "02"]
[TimeControl "180+1"]
[Date "2022.05.31"]
[WhiteClock "0:00:01"]
[BlackClock "0:00:06"]

1. c4 {[%clk 0:03:00]}  e6 {[%clk 0:02:57]} 2. Nf3 {[%clk 0:02:59]}  d5 {[%clk 0:02:58]} 3. g3 {[%clk 0:02:59]}  c6 {[%clk 0:02:57]} 4. cxd5 {[%clk 0:02:52]}  exd5 {[%clk 0:02:57]} 5. Bg2 {[%clk 0:02:52]}  Nf6 {[%clk 0:02:58]} 6. O-O {[%clk 0:02:52]}  Bd6 {[%clk 0:02:58]} 7. Nc3 {[%clk 0:02:49]}  O-O {[%clk 0:02:58]} 8. d3 {[%clk 0:02:50]}  Re8 {[%clk 0:02:57]} 9. Qc2 {[%clk 0:02:46]}  Bg4 {[%clk 0:02:34]} 10. e4 {[%clk 0:02:30]}  dxe4 {[%clk 0:02:27]} 11. dxe4 {[%clk 0:02:28]}  Nbd7 {[%clk 0:02:27]} 12. Be3 {[%clk 0:02:19]}  Qe7 {[%clk 0:02:08]} 13. Nd4 {[%clk 0:02:07]}  Ne5 {[%clk 0:01:53]} 14. f4 {[%clk 0:01:46]}  Nc4 {[%clk 0:01:53]} 15. Bf2 {[%clk 0:01:47]}  Bb4 {[%clk 0:01:46]} 16. e5 {[%clk 0:01:40]}  Nd7 {[%clk 0:01:38]} 17. Ne4 {[%clk 0:01:35]}  Ndb6 {[%clk 0:01:35]} 18. a3 {[%clk 0:01:20]}  Bc5 {[%clk 0:01:21]} 19. Nxc5 {[%clk 0:01:18]}  Qxc5 {[%clk 0:01:22]} 20. b3 {[%clk 0:01:02]}  Rad8 {[%clk 0:00:53]} 21. Ne6 {[%clk 0:00:28]}  Rd2 {[%clk 0:00:46]} 22. Nxc5 {[%clk 0:00:28]}  Rxc2 {[%clk 0:00:46]} 23. bxc4 {[%clk 0:00:28]}  Nxc4 {[%clk 0:00:46]} 24. Nxb7 {[%clk 0:00:24]}  Nd2 {[%clk 0:00:44]} 25. Rfc1 {[%clk 0:00:22]}  Rb2 {[%clk 0:00:44]} 26. Nd6 {[%clk 0:00:21]}  Reb8 {[%clk 0:00:44]} 27. Bxc6 {[%clk 0:00:15]}  Nb3 {[%clk 0:00:41]} 28. Bxa7 {[%clk 0:00:08]}  Nxc1 {[%clk 0:00:38]} 29. Rxc1 {[%clk 0:00:06]}  R8b3 {[%clk 0:00:34]} 30. Bd5 {[%clk 0:00:06]}  Rxa3 {[%clk 0:00:34]} 31. Bxf7+ {[%clk 0:00:06]}  Kh8 {[%clk 0:00:34]} 32. Bd4 {[%clk 0:00:06]}  Rd2 {[%clk 0:00:33]} 33. e6 {[%clk 0:00:06]}  Ra8 {[%clk 0:00:21]} 34. e7 {[%clk 0:00:07]}  Bd7 {[%clk 0:00:18]} 35. e8=Q+ {[%clk 0:00:05]}  Bxe8 {[%clk 0:00:18]} 36. Bxe8 {[%clk 0:00:04]}  Rxd4 {[%clk 0:00:18]} 37. Bc6 {[%clk 0:00:04]}  Rb8 {[%clk 0:00:13]} 38. Nf7+ {[%clk 0:00:04]}  Kg8 {[%clk 0:00:13]} 39. Ne5 {[%clk 0:00:05]}  Kh8 {[%clk 0:00:11]} 40. Bf3 {[%clk 0:00:04]}  h5 {[%clk 0:00:10]} 41. Bxh5 {[%clk 0:00:04]}  Kh7 {[%clk 0:00:09]} 42. Bf3 {[%clk 0:00:04]}  Rd2 {[%clk 0:00:09]} 43. Rd1 {[%clk 0:00:04]}  Ra2 {[%clk 0:00:09]} 44. Re1 {[%clk 0:00:03]}  Rbb2 {[%clk 0:00:08]} 45. Ng4 {[%clk 0:00:03]}  g6 {[%clk 0:00:07]} 46. Ne3 {[%clk 0:00:03]}  Ra3 {[%clk 0:00:07]} 47. Bg2 {[%clk 0:00:04]}  Rbb3 {[%clk 0:00:08]} 48. Ng4 {[%clk 0:00:03]}  Rb2 {[%clk 0:00:08]} 49. Bf3 {[%clk 0:00:04]}  Rxf3 {[%clk 0:00:08]} 50. Re7+ {[%clk 0:00:04]}  Kg8 {[%clk 0:00:08]} 51. Nf6+ {[%clk 0:00:03]}  Kf8 {[%clk 0:00:07]} 52. Re1 {[%clk 0:00:03]}  Ra3 {[%clk 0:00:07]} 53. Nd7+ {[%clk 0:00:03]}  Kg7 {[%clk 0:00:07]} 54. Re7+ {[%clk 0:00:03]}  Kg8 {[%clk 0:00:07]} 55. Nf6+ {[%clk 0:00:02]}  Kf8 {[%clk 0:00:08]} 56. Re1 {[%clk 0:00:03]}  Raa2 {[%clk 0:00:08]} 57. Nh7+ {[%clk 0:00:03]}  Kg7 {[%clk 0:00:07]} 58. Re7+ {[%clk 0:00:03]}  Kh8 {[%clk 0:00:06]} 59. Nf6 {[%clk 0:00:01]}  Rb1+ {[%clk 0:00:06]} 0-1


[Site "https://www.chess.com"]

[Event "Titled Tuesday Blitz May 31 Late 2022"]
[White "Perez Torres, Nabi Isaias"]
[Black "Song, Michael"]
[WhiteFideId "5120373"]
[BlackFideId "2613190"]
[WhiteElo "1755"]
[BlackElo "2274"]
[Result "0-1"]
[Round "02"]
[TimeControl "180+1"]
[Date "2022.06.01"]
[WhiteClock "0:00:22"]
[BlackClock "0:00:09"]

1. d4 {[%clk 0:03:00]}  f5 {[%clk 0:02:57]} 2. c4 {[%clk 0:03:00]}  Nf6 {[%clk 0:02:57]} 3. Nc3 {[%clk 0:03:00]}  d6 {[%clk 0:02:56]} 4. e4 {[%clk 0:02:57]}  fxe4 {[%clk 0:02:53]} 5. Bg5 {[%clk 0:02:57]}  Nbd7 {[%clk 0:02:51]} 6. f3 {[%clk 0:02:57]}  e5 {[%clk 0:02:46]} 7. fxe4 {[%clk 0:02:38]}  exd4 {[%clk 0:02:42]} 8. Qxd4 {[%clk 0:02:39]}  Be7 {[%clk 0:02:40]} 9. Nf3 {[%clk 0:02:37]}  O-O {[%clk 0:02:37]} 10. O-O-O {[%clk 0:02:32]}  c6 {[%clk 0:02:26]} 11. Bd3 {[%clk 0:02:17]}  Ng4 {[%clk 0:02:22]} 12. h4 {[%clk 0:02:11]}  Nde5 {[%clk 0:02:20]} 13. Bc2 {[%clk 0:01:47]}  Be6 {[%clk 0:02:15]} 14. c5 {[%clk 0:01:32]}  Nxf3 {[%clk 0:01:58]} 15. gxf3 {[%clk 0:01:30]}  Bxg5+ {[%clk 0:01:57]} 16. hxg5 {[%clk 0:01:26]}  Qxg5+ {[%clk 0:01:58]} 17. Kb1 {[%clk 0:01:26]}  Ne5 {[%clk 0:01:45]} 18. Qxd6 {[%clk 0:01:18]}  Rae8 {[%clk 0:01:42]} 19. Rdg1 {[%clk 0:00:50]}  Qf6 {[%clk 0:01:38]} 20. f4 {[%clk 0:00:36]}  Qxf4 {[%clk 0:01:36]} 21. Ne2 {[%clk 0:00:34]}  Qf6 {[%clk 0:01:31]} 22. Nd4 {[%clk 0:00:33]}  Nc4 {[%clk 0:01:27]} 23. e5 {[%clk 0:00:23]}  Qf7 {[%clk 0:00:42]} 24. Bxh7+ {[%clk 0:00:22]}  Kh8 {[%clk 0:00:34]} 25. Bg6+ {[%clk 0:00:21]}  Kg8 {[%clk 0:00:33]} 26. Bxf7+ {[%clk 0:00:20]}  Rxf7 {[%clk 0:00:32]} 27. Qxe6 {[%clk 0:00:18]}  Rxe6 {[%clk 0:00:31]} 28. Nxe6 {[%clk 0:00:19]}  Nxe5 {[%clk 0:00:31]} 29. Ng5 {[%clk 0:00:19]}  Rf2 {[%clk 0:00:28]} 30. Re1 {[%clk 0:00:19]}  Rf5 {[%clk 0:00:26]} 31. Rhf1 {[%clk 0:00:18]}  Rxg5 {[%clk 0:00:26]} 32. Rf2 {[%clk 0:00:17]}  Nd3 {[%clk 0:00:24]} 33. Re8+ {[%clk 0:00:16]}  Kh7 {[%clk 0:00:23]} 34. Rh2+ {[%clk 0:00:16]}  Kg6 {[%clk 0:00:24]} 35. Rh1 {[%clk 0:00:16]}  Nxc5 {[%clk 0:00:24]} 36. Re7 {[%clk 0:00:16]}  Kf6 {[%clk 0:00:23]} 37. Re8 {[%clk 0:00:16]}  Rg2 {[%clk 0:00:23]} 38. Ree1 {[%clk 0:00:17]}  Nd3 {[%clk 0:00:22]} 39. Rhf1+ {[%clk 0:00:17]}  Kg6 {[%clk 0:00:16]} 40. Re3 {[%clk 0:00:18]}  Nc5 {[%clk 0:00:15]} 41. b3 {[%clk 0:00:17]}  Rd2 {[%clk 0:00:12]} 42. Rc3 {[%clk 0:00:18]}  Ne4 {[%clk 0:00:12]} 43. Re3 {[%clk 0:00:18]}  Nf6 {[%clk 0:00:12]} 44. Rg3+ {[%clk 0:00:18]}  Kf7 {[%clk 0:00:12]} 45. Rc3 {[%clk 0:00:18]}  Rd7 {[%clk 0:00:12]} 46. Rc2 {[%clk 0:00:19]}  a5 {[%clk 0:00:11]} 47. Kc1 {[%clk 0:00:20]}  Ke7 {[%clk 0:00:11]} 48. Re2+ {[%clk 0:00:20]}  Kf7 {[%clk 0:00:11]} 49. Rg1 {[%clk 0:00:21]}  g6 {[%clk 0:00:10]} 50. Reg2 {[%clk 0:00:21]}  a4 {[%clk 0:00:06]} 51. Rxg6 {[%clk 0:00:21]}  axb3 {[%clk 0:00:06]} 52. Rg7+ {[%clk 0:00:22]}  Ke6 {[%clk 0:00:05]} 53. Rxd7 {[%clk 0:00:23]}  bxa2 {[%clk 0:00:04]} 54. Kb2 {[%clk 0:00:20]}  Nxd7 {[%clk 0:00:04]} 55. Kxa2 {[%clk 0:00:21]}  b5 {[%clk 0:00:05]} 56. Kb3 {[%clk 0:00:21]}  Kd5 {[%clk 0:00:05]} 57. Kb4 {[%clk 0:00:22]}  Ne5 {[%clk 0:00:04]} 58. Rd1+ {[%clk 0:00:22]}  Ke4 {[%clk 0:00:03]} 59. Re1+ {[%clk 0:00:22]}  Kd4 {[%clk 0:00:03]} 60. Rh1 {[%clk 0:00:22]}  Nd3+ {[%clk 0:00:03]} 61. Ka5 {[%clk 0:00:23]}  Kc5 {[%clk 0:00:03]} 62. Rh3 {[%clk 0:00:21]}  Nf4 {[%clk 0:00:03]} 63. Rh4 {[%clk 0:00:21]}  Nd5 {[%clk 0:00:04]} 64. Rh5 {[%clk 0:00:21]}  b4 {[%clk 0:00:04]} 65. Ka4 {[%clk 0:00:21]}  Kc4 {[%clk 0:00:04]} 66. Rh4+ {[%clk 0:00:21]}  Kc5 {[%clk 0:00:04]} 67. Kb3 {[%clk 0:00:21]}  Kb5 {[%clk 0:00:04]} 68. Rc4 {[%clk 0:00:21]}  c5 {[%clk 0:00:04]} 69. Rh4 {[%clk 0:00:21]}  Nb6 {[%clk 0:00:05]} 70. Rh5 {[%clk 0:00:21]}  Nc8 {[%clk 0:00:05]} 71. Rh6 {[%clk 0:00:20]}  Na7 {[%clk 0:00:05]} 72. Rh8 {[%clk 0:00:19]}  Nc6 {[%clk 0:00:06]} 73. Rc8 {[%clk 0:00:20]}  Nd4+ {[%clk 0:00:06]} 74. Kb2 {[%clk 0:00:19]}  Kc4 {[%clk 0:00:07]} 75. Rb8 {[%clk 0:00:20]}  b3 {[%clk 0:00:07]} 76. Rc8 {[%clk 0:00:20]}  Kb4 {[%clk 0:00:08]} 77. Rc7 {[%clk 0:00:20]}  Nb5 {[%clk 0:00:08]} 78. Rc8 {[%clk 0:00:20]}  c4 {[%clk 0:00:09]} 79. Kb1 {[%clk 0:00:21]}  c3 {[%clk 0:00:09]} 80. Kc1 {[%clk 0:00:21]}  b2+ {[%clk 0:00:09]} 81. Kb1 {[%clk 0:00:21]}  Na3+ {[%clk 0:00:09]} 82. Ka2 {[%clk 0:00:22]}  b1=Q# {[%clk 0:00:09]} 0-1


[Site "https://www.chess.com"]